[Event "FIDE World Rapid-ch Open 2018"]
[White "Kamsky, Gata"]
[Black "Oparin, Grigoriy"]
[Site "St. Petersburg"]
[Round "5.5"]
[Annotator "RC"]
[Result "1/2-1/2"]
[Date "2018.12.26"]
[WhiteElo "2666"]
[BlackElo "2613"]
[PlyCount "73"]
[TimeControl "900+10"]

1. e4 {[%emt 0:0:0]} e5 {[%emt 0:0:0]} 2. Nf3 {[%emt 0:0:0]} Nc6 {[%emt 0:0:0]
} 3. Bb5 {[%emt 0:0:0]} a6 {[%emt 0:0:0]} 4. Ba4 {[%emt 0:0:0]} Nf6 {[%emt 0:0:0]} 5. 0-0 {[%emt 0:0:3]} Be7 {[%emt 0:0:0]} 6. Re1 {[%emt 0:0:3]
} b5 {[%emt 0:0:2]} 7. Bb3 {[%emt 0:0:2]} d6 {[%emt 0:0:2]} 8. c3 {[%emt 0:0:2]} 0-0 {[%emt 0:0:3]} 9. d4 {[%emt 0:0:2]} Bg4 {[%emt 0:0:8]
} 10. d5 {[%emt 0:0:1]} Na5 {[%emt 0:0:5]} 11. Bc2 {[%emt 0:0:0]} Qc8 {[%emt 0:0:7]} 12. h3 {[%emt 0:0:3]} Bd7 {[%emt 0:0:5]} 13. Bg5 {[%emt 0:0:10]} c6 {[%emt 0:0:32]} 14. dxc6 {[%emt 0:0:3]} Qxc6 {[%emt 0:0:7]
} 15. Nbd2 {[%emt 0:0:5]} h6 {[%emt 0:0:17]} 16. Bh4 {[%emt 0:0:0]} Nc4 {[%emt 0:1:0]} 17. Rb1 {[%emt 0:1:17]} Be6 {[%emt 0:0:28]} 18. Nf1 {[%emt 0:1:58]} Rfe8 {[%emt 0:0:28]} 19. Bd3 {[%emt 0:1:12]} Rad8 {[%emt 0:0:52]
} 20. b3 {[%emt 0:0:46]} Nb6 {[%emt 0:0:6]} 21. Rc1 {[%emt 0:0:0]} Qc7 {[%emt 0:3:45]} 22. Bxf6 {[%emt 0:1:17]} Bxf6 {[%emt 0:0:2]} 23. Ne3 {[%emt 0:0:4]} d5 {[%emt 0:0:28]} 24. Qe2 {[%emt 0:0:4]} dxe4 {[%emt 0:1:22]
} 25. Bxe4 {[%emt 0:0:3]} Be7 {[%emt 0:0:1]} 26. Qc2 {[%emt 0:1:24]
} Bc5 {[%emt 0:1:45]} 27. Ng4 {[%emt 0:0:17]} Nd5 {[%emt 0:0:0]} 28. Ngxe5 {[%emt 0:3:52]} Nf4 {[%emt 0:0:2]} 29. Bf5 {[%emt 0:1:25]} Bd5 {[%emt 0:0:18]} 30. c4 {[%emt 0:0:18]} bxc4 {[%emt 0:0:7]} 31. bxc4 {[%emt 0:0:13]
} Bxf3 {[%emt 0:4:20]} 32. Nxf3 {[%emt 0:0:3]} g6 {[%emt 0:0:0]} 33. Be4 {[%emt 0:0:11]} Re7 {[%emt 0:0:25]} 34. Bd5 {[%emt 0:1:49]} Nxd5 {[%emt 0:0:7]} 35. cxd5 {[%emt 0:0:3]} Rxd5 {[%emt 0:0:2]} 36. Rxe7 {[%emt 0:0:17]} Qxe7 {[%emt 0:0:4]} 37. Rd1 {[%emt 0:1:43]} 1/2-1/2

[Event "FIDE World Rapid-ch Open 2018"]
[White "Artemiev, Vladislav"]
[Black "Firouzja, Alireza"]
[Site "St. Petersburg"]
[Round "5.7"]
[Annotator "RC"]
[Result "0-1"]
[Date "2018.12.26"]
[WhiteElo "2709"]
[BlackElo "2607"]
[PlyCount "128"]
[TimeControl "900+10"]

1. e4 {[%emt 0:0:0]} e5 {[%emt 0:0:0]} 2. Nf3 {[%emt 0:0:0]} Nf6 {[%emt 0:0:0]
} 3. Nc3 {[%emt 0:0:2]} Bb4 {[%emt 0:2:2]} 4. Nxe5 {[%emt 0:0:0]} 0-0 {[%emt 0:0:18]} 5. Be2 {[%emt 0:0:19]} Re8 {[%emt 0:0:14]} 6. Nd3 {[%emt 0:0:2]} Bxc3 {[%emt 0:0:2]} 7. dxc3 {[%emt 0:0:2]} Nxe4 {[%emt 0:0:2]
} 8. Nf4 {[%emt 0:0:4]} d6 {[%emt 0:0:41]} 9. 0-0 {[%emt 0:0:0]} Nd7 {[%emt 0:0:6]} 10. f3 {[%emt 0:0:38]} Nef6 {[%emt 0:0:12]} 11. c4 {[%emt 0:0:3]} Qe7 {[%emt 0:1:33]} 12. Rf2 {[%emt 0:0:9]} Nc5 {[%emt 0:0:0]} 13. b3 {[%emt 0:1:12]} Qe5 {[%emt 0:1:19]} 14. Rb1 {[%emt 0:0:2]} Bd7 {[%emt 0:0:1]} 15. Bf1 {[%emt 0:0:53]} Bc6 {[%emt 0:0:36]} 16. Qd2 {[%emt 0:0:49]
} Nfe4 {[%emt 0:2:4]} 17. fxe4 {[%emt 0:0:2]} Nxe4 {[%emt 0:0:0]} 18. Qe3 {[%emt 0:0:1]} Nc3 {[%emt 0:0:26]} 19. Qxe5 {[%emt 0:2:0]} dxe5 {[%emt 0:0:2]} 20. Ra1 {[%emt 0:0:2]} exf4 {[%emt 0:0:4]} 21. Bxf4 {[%emt 0:0:9]
} Re7 {[%emt 0:0:10]} 22. Bd2 {[%emt 0:1:8]} Ne4 {[%emt 0:0:0]} 23. Bb4 {[%emt 0:0:5]} Re6 {[%emt 0:0:59]} 24. Rf4 {[%emt 0:0:21]} a5 {[%emt 0:1:8]} 25. Be1 {[%emt 0:0:3]} b6 {[%emt 0:0:1]} 26. Rd1 {[%emt 0:0:0]} Rae8 {[%emt 0:0:25]} 27. h4 {[%emt 0:4:57]} h6 {[%emt 0:0:22]} 28. a3 {[%emt 0:0:37]} Nf6 {[%emt 0:1:2]} 29. Bf2 {[%emt 0:1:13]} Be4 {[%emt 0:0:0]} 30. Bd3 {[%emt 0:1:58]} g5 {[%emt 0:0:9]} 31. hxg5 {[%emt 0:0:1]} hxg5 {[%emt 0:0:1]} 32. Bxe4 {[%emt 0:0:2]} gxf4 {[%emt 0:0:28]} 33. Bf3 {[%emt 0:0:1]
} Ne4 {[%emt 0:0:2]} 34. Rd7 {[%emt 0:0:10]} Nxf2 {[%emt 0:0:0]} 35. Kxf2 {[%emt 0:0:2]} R8e7 {[%emt 0:0:23]} 36. Rd4 {[%emt 0:0:44]} Rd6 {[%emt 0:0:3]} 37. Bd5 {[%emt 0:0:1]} Kg7 {[%emt 0:0:21]} 38. Rxf4 {[%emt 0:0:37]
} Rf6 {[%emt 0:0:24]} 39. g3 {[%emt 0:0:22]} Kg6 {[%emt 0:0:0]} 40. b4 {[%emt 0:1:20]} Kg5 {[%emt 0:0:38]} 41. Kf3 {[%emt 0:0:5]} Re1 {[%emt 0:0:13]} 42. c5 {[%emt 0:0:52]} Rf1+ {[%emt 0:1:2]} 43. Ke3 {[%emt 0:0:3]
} R1xf4 {[%emt 0:0:3]} 44. gxf4+ {[%emt 0:0:2]} Rxf4 {[%emt 0:0:1]
} 45. cxb6 {[%emt 0:0:17]} cxb6 {[%emt 0:0:1]} 46. c4 {[%emt 0:0:1]
} axb4 {[%emt 0:0:38]} 47. axb4 {[%emt 0:0:1]} f5 {[%emt 0:0:0]} 48. Kd3 {[%emt 0:0:52]} Kf6 {[%emt 0:0:5]} 49. Ba8 {[%emt 0:0:20]} Ke5 {[%emt 0:0:3]} 50. Kc3 {[%emt 0:0:1]} Kd6 {[%emt 0:0:23]} 51. Bb7 {[%emt 0:0:18]
} Rh4 {[%emt 0:0:4]} 52. Kd3 {[%emt 0:0:5]} Ke5 {[%emt 0:0:0]} 53. Bf3 {[%emt 0:0:12]} Rh3 {[%emt 0:1:14]} 54. Ke3 {[%emt 0:0:10]} Rh2 {[%emt 0:0:4]} 55. c5 {[%emt 0:0:4]} bxc5 {[%emt 0:0:5]} 56. bxc5 {[%emt 0:0:1]
} Rc2 {[%emt 0:0:4]} 57. c6 {[%emt 0:0:1]} Rc3+ {[%emt 0:0:0]} 58. Ke2 {[%emt 0:0:1]} Kf4 {[%emt 0:0:4]} 59. Bh1 {[%emt 0:0:42]} Rc1 {[%emt 0:0:51]} 60. Bd5 {[%emt 0:0:2]} Ke5 {[%emt 0:0:9]} 61. Bf3 {[%emt 0:0:3]
} Kd4 {[%emt 0:0:12]} 62. Kd2 {[%emt 0:0:30]} Rc3 {[%emt 0:0:0]} 63. Bh1 {[%emt 0:0:13]} Rh3 {[%emt 0:0:9]} 64. Bg2 {[%emt 0:0:9]} Rh2 {[%emt 0:0:5]} 0-1

[Event "FIDE World Rapid-ch Open 2018"]
[White "Bocharov, Dmitry"]
[Black "Wang, Hao"]
[Site "St. Petersburg"]
[Round "5.8"]
[Annotator "RC"]
[Result "0-1"]
[Date "2018.12.26"]
[WhiteElo "2533"]
[BlackElo "2730"]
[PlyCount "98"]
[TimeControl "900+10"]

1. Nf3 {[%emt 0:0:0]} d5 {[%emt 0:0:0]} 2. e3 {[%emt 0:0:0]} Nf6 {[%emt 0:0:0]
} 3. c4 {[%emt 0:0:0]} e6 {[%emt 0:0:0]} 4. b3 {[%emt 0:0:0]} b6 {[%emt 0:0:0]} 5. Bb2 {[%emt 0:0:3]} Bb7 {[%emt 0:0:1]} 6. Nc3 {[%emt 0:0:7]
} Nbd7 {[%emt 0:0:5]} 7. cxd5 {[%emt 0:1:48]} exd5 {[%emt 0:0:0]} 8. d4 {[%emt 0:0:6]} Bd6 {[%emt 0:0:8]} 9. g3 {[%emt 0:0:2]} 0-0 {[%emt 0:0:23]} 10. Bg2 {[%emt 0:0:1]} Ba6 {[%emt 0:0:6]} 11. Ne2 {[%emt 0:0:38]
} Bb4+ {[%emt 0:0:14]} 12. Kf1 {[%emt 0:0:2]} Re8 {[%emt 0:0:0]} 13. Kg1 {[%emt 0:0:7]} Bd6 {[%emt 0:0:8]} 14. Nf4 {[%emt 0:0:5]} Bb7 {[%emt 0:0:40]} 15. Rc1 {[%emt 0:0:43]} a5 {[%emt 0:0:6]} 16. Nd3 {[%emt 0:0:0]} a4 {[%emt 0:0:24]} 17. Nfe5 {[%emt 0:0:29]} axb3 {[%emt 0:0:30]} 18. axb3 {[%emt 0:0:3]} Qe7 {[%emt 0:0:27]} 19. Bh3 {[%emt 0:1:58]} Ra2 {[%emt 0:2:53]
} 20. Nc6 {[%emt 0:1:24]} Qe4 {[%emt 0:0:26]} 21. Rc2 {[%emt 0:0:0]} h5 {[%emt 0:2:1]} 22. Bg2 {[%emt 0:1:55]} Qf5 {[%emt 0:0:30]} 23. Bf3 {[%emt 0:1:49]} Ng4 {[%emt 0:1:29]} 24. Ndb4 {[%emt 0:1:26]} Rxb2 {[%emt 0:0:23]
} 25. Rxb2 {[%emt 0:0:6]} Ndf6 {[%emt 0:0:2]} 26. h3 {[%emt 0:1:13]
} Nxe3 {[%emt 0:1:19]} 27. fxe3 {[%emt 0:0:2]} Rxe3 {[%emt 0:0:0]} 28. Kg2 {[%emt 0:1:4]} Qg5 {[%emt 0:0:50]} 29. Ne5 {[%emt 0:0:4]} Bxb4 {[%emt 0:0:54]} 30. h4 {[%emt 0:0:42]} Qf5 {[%emt 0:0:9]} 31. Re2 {[%emt 0:0:9]
} Rc3 {[%emt 0:0:32]} 32. Qa1 {[%emt 0:1:13]} Rxb3 {[%emt 0:0:0]} 33. Qa4 {[%emt 0:0:3]} Rxf3 {[%emt 0:1:0]} 34. Qxb4 {[%emt 0:0:9]} Ba6 {[%emt 0:0:25]} 35. Nxf3 {[%emt 0:0:38]} Bxe2 {[%emt 0:0:3]} 36. Qc3 {[%emt 0:0:12]
} Qe4 {[%emt 0:0:18]} 37. Ra1 {[%emt 0:0:31]} Ng4 {[%emt 0:0:0]} 38. Ra3 {[%emt 0:0:1]} g6 {[%emt 0:0:49]} 39. Kg1 {[%emt 0:0:19]} Bxf3 {[%emt 0:0:19]} 40. Qxf3 {[%emt 0:0:2]} Qxd4+ {[%emt 0:0:1]} 41. Kg2 {[%emt 0:0:1]
} Qb2+ {[%emt 0:0:4]} 42. Kg1 {[%emt 0:0:1]} Qc1+ {[%emt 0:0:0]} 43. Kg2 {[%emt 0:0:1]} Qd2+ {[%emt 0:0:3]} 44. Kg1 {[%emt 0:0:1]} Qd4+ {[%emt 0:0:16]} 45. Kg2 {[%emt 0:0:8]} Ne5 {[%emt 0:0:19]} 46. Ra8+ {[%emt 0:0:14]
} Kg7 {[%emt 0:0:1]} 47. Qa3 {[%emt 0:0:1]} Qe4+ {[%emt 0:0:0]} 48. Kg1 {[%emt 0:0:1]} Qe1+ {[%emt 0:0:2]} 49. Kg2 {[%emt 0:0:1]} Qe2+ {[%emt 0:0:1]} 0-1

[Event "FIDE World Rapid-ch Open 2018"]
[White "Harikrishna, Pentala"]
[Black "Fridman, Daniel"]
[Site "St. Petersburg"]
[Round "5.10"]
[Annotator "RC"]
[Result "1/2-1/2"]
[Date "2018.12.26"]
[WhiteElo "2725"]
[BlackElo "2633"]
[PlyCount "78"]
[TimeControl "900+10"]

1. c4 {[%emt 0:0:0]} e6 {[%emt 0:0:0]} 2. Nf3 {[%emt 0:0:0]} d5 {[%emt 0:0:0]} 3. g3 {[%emt 0:0:1]} Nf6 {[%emt 0:0:0]} 4. Bg2 {[%emt 0:0:1]} d4 {[%emt 0:0:0]} 5. 0-0 {[%emt 0:0:5]} c5 {[%emt 0:0:0]} 6. e3 {[%emt 0:0:0]} Nc6 {[%emt 0:0:0]} 7. exd4 {[%emt 0:0:2]} cxd4 {[%emt 0:0:0]} 8. d3 {[%emt 0:0:4]} Bd6 {[%emt 0:0:1]} 9. Na3 {[%emt 0:0:30]} 0-0 {[%emt 0:0:0]} 10. Re1 {[%emt 0:0:10]} e5 {[%emt 0:0:7]} 11. c5 {[%emt 0:0:4]} Bc7 {[%emt 0:0:4]
} 12. Nc4 {[%emt 0:0:33]} Nd7 {[%emt 0:2:18]} 13. Bd2 {[%emt 0:0:0]} Nxc5 {[%emt 0:0:14]} 14. Ncxe5 {[%emt 0:0:11]} Nxe5 {[%emt 0:0:3]} 15. Nxe5 {[%emt 0:0:2]} Bxe5 {[%emt 0:1:18]} 16. Rxe5 {[%emt 0:0:3]} Nxd3 {[%emt 0:0:2]} 17. Bg5 {[%emt 0:3:17]} Qc7 {[%emt 0:3:45]} 18. Rd5 {[%emt 0:2:50]
} Nb4 {[%emt 0:2:9]} 19. Rxd4 {[%emt 0:0:5]} Nc6 {[%emt 0:0:0]} 20. Rd6 {[%emt 0:1:39]} Be6 {[%emt 0:0:37]} 21. b3 {[%emt 0:0:19]} h6 {[%emt 0:0:37]
} 22. Bf4 {[%emt 0:0:13]} Rfd8 {[%emt 0:0:46]} 23. Rxd8+ {[%emt 0:2:47]
} Qxd8 {[%emt 0:0:2]} 24. Be3 {[%emt 0:0:20]} Qa5 {[%emt 0:0:0]} 25. Qe1 {[%emt 0:0:26]} Qxe1+ {[%emt 0:0:43]} 26. Rxe1 {[%emt 0:0:1]} Rd8 {[%emt 0:0:1]} 27. Bxc6 {[%emt 0:2:11]} bxc6 {[%emt 0:0:3]} 28. f3 {[%emt 0:0:7]
} a5 {[%emt 0:0:32]} 29. Rc1 {[%emt 0:0:45]} a4 {[%emt 0:0:14]
} 30. bxa4 {[%emt 0:0:12]} Ra8 {[%emt 0:0:2]} 31. a3 {[%emt 0:0:32]} Rxa4 {[%emt 0:0:2]
} 32. Bc5 {[%emt 0:0:16]} f6 {[%emt 0:1:34]} 33. Kf2 {[%emt 0:0:0]} Kf7 {[%emt 0:0:2]} 34. Bb4 {[%emt 0:0:15]} Bd5 {[%emt 0:0:2]} 35. Re1 {[%emt 0:0:12]} Be6 {[%emt 0:0:5]} 36. f4 {[%emt 0:0:18]} Ra8 {[%emt 0:0:0]} 37. Rc1 {[%emt 0:0:24]} Bd5 {[%emt 0:0:3]} 38. Re1 {[%emt 0:0:12]} Be6 {[%emt 0:0:2]} 39. Rc1 {[%emt 0:1:5]} Bd5 1/2-1/2

[Event "FIDE World Rapid-ch Open 2018"]
[White "Zubov, Alexander"]
[Black "Mamedov, Rauf"]
[Site "St. Petersburg"]
[Round "5.12"]
[Annotator "RC"]
[Result "1-0"]
[Date "2018.12.26"]
[WhiteElo "2597"]
[BlackElo "2703"]
[PlyCount "77"]
[TimeControl "900+10"]

1. d4 {[%emt 0:0:0]} Nf6 {[%emt 0:0:0]} 2. c4 {[%emt 0:0:0]} g6 {[%emt 0:0:0]} 3. Nc3 {[%emt 0:0:16]} Bg7 {[%emt 0:0:0]} 4. Bg5 {[%emt 0:0:24]} 0-0 {[%emt 0:0:12]} 5. e3 {[%emt 0:0:14]} c5 {[%emt 0:0:13]} 6. Bxf6 {[%emt 0:2:30]
} exf6 {[%emt 0:0:32]} 7. dxc5 {[%emt 0:0:28]} f5 {[%emt 0:0:0]} 8. Nge2 {[%emt 0:0:5]} Qa5 {[%emt 0:1:45]} 9. Qd2 {[%emt 0:0:23]} Qxc5 {[%emt 0:0:9]} 10. Nf4 {[%emt 0:0:7]} Nc6 {[%emt 0:0:48]} 11. Rc1 {[%emt 0:0:39]
} d6 {[%emt 0:2:40]} 12. Nfd5 {[%emt 0:2:10]} Qa5 {[%emt 0:0:0]} 13. Be2 {[%emt 0:1:5]} Be6 {[%emt 0:0:3]} 14. b3 {[%emt 0:0:18]} Rfe8 {[%emt 0:1:52]} 15. Nb5 {[%emt 0:0:42]} Qxd2+ {[%emt 0:0:51]} 16. Kxd2 {[%emt 0:0:2]
} Red8 {[%emt 0:0:8]} 17. Nbc7 {[%emt 0:4:27]} Rac8 {[%emt 0:0:0]} 18. Rhd1 {[%emt 0:1:1]} Kf8 {[%emt 0:1:44]} 19. Ke1 {[%emt 0:0:27]} a6 {[%emt 0:1:24]} 20. f4 {[%emt 0:0:55]} Bd7 {[%emt 0:0:37]} 21. Rd2 {[%emt 0:0:21]
} Nb8 {[%emt 0:0:20]} 22. Na8 {[%emt 0:0:28]} Be6 {[%emt 0:0:0]} 23. Nab6 {[%emt 0:0:16]} Rc6 {[%emt 0:0:40]} 24. Kf2 {[%emt 0:0:19]} a5 {[%emt 0:0:10]} 25. Bf3 {[%emt 0:0:17]} Na6 {[%emt 0:0:8]} 26. Na4 {[%emt 0:0:13]
} Nc5 {[%emt 0:1:26]} 27. Nac3 {[%emt 0:0:38]} Bxd5 {[%emt 0:0:0]} 28. Nxd5 {[%emt 0:0:7]} Rcc8 {[%emt 0:0:12]} 29. Nb6 {[%emt 0:0:12]
} Rc7 {[%emt 0:0:6]} 30. Rcd1 {[%emt 0:0:10]} Re8 {[%emt 0:0:2]} 31. Rxd6 {[%emt 0:0:7]} Rce7 {[%emt 0:0:5]} 32. Nd5 {[%emt 0:0:21]} Re6 {[%emt 0:0:0]} 33. Nc7 {[%emt 0:0:12]} Rxd6 {[%emt 0:0:2]} 34. Rxd6 {[%emt 0:0:1]
} Rc8 {[%emt 0:0:1]} 35. Nd5 {[%emt 0:0:11]} Bb2 {[%emt 0:0:23]} 36. Ke2 {[%emt 0:0:8]
} Re8 {[%emt 0:0:8]} 37. Rb6 {[%emt 0:0:5]} Bc1 {[%emt 0:0:0]} 38. Rb5 {[%emt 0:0:6]} Ba3 {[%emt 0:0:9]} 39. Rxa5 {[%emt 0:0:4]} 1-0

[Event "FIDE World Rapid-ch Open 2018"]
[White "Guseinov, Gadir"]
[Black "Shirov, Alexei"]
[Site "St. Petersburg"]
[Round "5.14"]
[Annotator "RC"]
[Result "1/2-1/2"]
[Date "2018.12.26"]
[WhiteElo "2664"]
[BlackElo "2643"]
[PlyCount "67"]
[TimeControl "900+10"]

1. e4 {[%emt 0:0:0]} e5 {[%emt 0:0:0]} 2. Nf3 {[%emt 0:0:10]} Nc6 {[%emt 0:0:10]
} 3. Bb5 {[%emt 0:0:10]} a6 {[%emt 0:0:10]} 4. Bxc6 {[%emt 0:0:0]} dxc6 {[%emt 0:0:1]} 5. 0-0 {[%emt 0:0:1]} f6 {[%emt 0:0:1]} 6. d4 {[%emt 0:0:1]} Bg4 {[%emt 0:0:2]} 7. c3 {[%emt 0:0:4]} Bd6 {[%emt 0:0:0]} 8. Nbd2 {[%emt 0:0:19]} Ne7 {[%emt 0:0:2]} 9. h3 {[%emt 0:0:15]} Bh5 {[%emt 0:0:53]
} 10. dxe5 {[%emt 0:0:10]} Bxe5 {[%emt 0:4:13]} 11. Nc4 {[%emt 0:4:17]
} Qxd1 {[%emt 0:0:9]} 12. Rxd1 {[%emt 0:0:2]} Bxf3 {[%emt 0:0:0]} 13. gxf3 {[%emt 0:0:1]} Ng6 {[%emt 0:0:21]} 14. Be3 {[%emt 0:0:26]} b6 {[%emt 0:2:38]} 15. Kf1 {[%emt 0:1:3]} Ke7 {[%emt 0:0:15]} 16. Rd2 {[%emt 0:2:29]
} Rad8 {[%emt 0:0:22]} 17. Nxe5 {[%emt 0:0:22]} Nxe5 {[%emt 0:0:0]} 18. Ke2 {[%emt 0:0:27]} Nc4 {[%emt 0:0:31]} 19. Rxd8 {[%emt 0:0:26]} Rxd8 {[%emt 0:0:3]} 20. Rg1 {[%emt 0:1:50]} g6 {[%emt 0:0:29]} 21. b3 {[%emt 0:1:17]
} Nd6 {[%emt 0:0:50]} 22. h4 {[%emt 0:0:21]} Ke6 {[%emt 0:0:0]} 23. Bf4 {[%emt 0:1:11]} f5 {[%emt 0:0:39]} 24. Bxd6 {[%emt 0:0:43]} cxd6 {[%emt 0:0:10]} 25. h5 {[%emt 0:0:1]} Kf6 {[%emt 0:0:11]} 26. hxg6 {[%emt 0:0:16]
} hxg6 {[%emt 0:0:2]} 27. Rh1 {[%emt 0:0:43]} d5 {[%emt 0:0:0]} 28. Rh7 {[%emt 0:0:51]} dxe4 {[%emt 0:2:28]} 29. fxe4 {[%emt 0:0:1]} Re8 {[%emt 0:0:1]} 30. Rb7 {[%emt 0:0:1]} Rxe4+ {[%emt 0:0:10]} 31. Kf1 {[%emt 0:0:2]
} b5 {[%emt 0:0:16]} 32. Rb6 {[%emt 0:0:1]} Re6 {[%emt 0:0:0]} 33. Rxa6 {[%emt 0:0:1]} g5 {[%emt 0:0:19]} 34. a4 {[%emt 0:0:10]} 1/2-1/2

[Event "FIDE World Rapid-ch Open 2018"]
[White "Vitiugov, Nikita"]
[Black "Jakovenko, Dmitry"]
[Site "St. Petersburg"]
[Round "5.15"]
[Annotator "RC"]
[Result "1-0"]
[Date "2018.12.26"]
[WhiteElo "2719"]
[BlackElo "2735"]
[PlyCount "127"]
[TimeControl "900+10"]

1. e4 {[%emt 0:0:0]} e5 {[%emt 0:0:0]} 2. Nf3 {[%emt 0:0:0]} Nc6 {[%emt 0:0:0]
} 3. Bc4 {[%emt 0:0:0]} Bc5 {[%emt 0:0:0]} 4. c3 {[%emt 0:0:0]} Nf6 {[%emt 0:0:0]} 5. d4 {[%emt 0:0:4]} exd4 {[%emt 0:0:1]} 6. e5 {[%emt 0:0:3]
} d5 {[%emt 0:0:6]} 7. Be2 {[%emt 0:0:5]} Ne4 {[%emt 0:0:5]
} 8. cxd4 {[%emt 0:0:2]} Bb4+ {[%emt 0:0:12]} 9. Bd2 {[%emt 0:0:15]} Nxd2 {[%emt 0:0:5]
} 10. Nbxd2 {[%emt 0:0:2]} 0-0 {[%emt 0:0:6]} 11. 0-0 {[%emt 0:0:3]
} Ba5 {[%emt 0:0:12]} 12. Bb5 {[%emt 0:1:16]} Ne7 {[%emt 0:0:0]} 13. Bd3 {[%emt 0:0:3]} Bf5 {[%emt 0:0:22]} 14. Nb3 {[%emt 0:0:32]} Bb6 {[%emt 0:0:4]} 15. Bxf5 {[%emt 0:0:14]} Nxf5 {[%emt 0:0:2]} 16. Qd3 {[%emt 0:0:6]
} Qd7 {[%emt 0:0:10]} 17. Rac1 {[%emt 0:0:11]} c6 {[%emt 0:0:0]} 18. Nc5 {[%emt 0:0:39]} Bxc5 {[%emt 0:0:2]} 19. Rxc5 {[%emt 0:0:2]} g6 {[%emt 0:0:55]} 20. Qd2 {[%emt 0:0:49]} Ng7 {[%emt 0:0:57]} 21. Rc3 {[%emt 0:0:29]
} Qe7 {[%emt 0:0:7]} 22. h3 {[%emt 0:1:14]} Ne6 {[%emt 0:0:0]} 23. Re1 {[%emt 0:0:40]} Rae8 {[%emt 0:0:16]} 24. Rce3 {[%emt 0:0:41]} c5 {[%emt 0:0:11]} 25. dxc5 {[%emt 0:0:12]} Qxc5 {[%emt 0:0:2]} 26. Rd3 {[%emt 0:0:55]
} Rd8 {[%emt 0:0:5]} 27. Qh6 {[%emt 0:1:7]} Rfe8 {[%emt 0:0:0]} 28. Nh2 {[%emt 0:0:29]} Qf8 {[%emt 0:0:18]} 29. Qd2 {[%emt 0:0:8]} d4 {[%emt 0:1:23]} 30. Ng4 {[%emt 0:0:13]} Kh8 {[%emt 0:0:15]} 31. Nf6 {[%emt 0:0:6]
} Re7 {[%emt 0:0:1]} 32. Re4 {[%emt 0:0:32]} g5 {[%emt 0:0:0]} 33. h4 {[%emt 0:1:14]} Qh6 {[%emt 0:3:6]} 34. Rg3 {[%emt 0:0:26]} d3 {[%emt 0:1:17]
} 35. hxg5 {[%emt 0:1:16]} Qg6 {[%emt 0:0:2]} 36. Rxd3 {[%emt 0:1:4]
} Rxd3 {[%emt 0:0:56]} 37. Qxd3 {[%emt 0:0:1]} Rc7 {[%emt 0:0:0]} 38. Qd2 {[%emt 0:0:59]} Rc8 {[%emt 0:0:18]} 39. Rh4 {[%emt 0:0:30]} Rd8 {[%emt 0:0:24]} 40. Qc1 {[%emt 0:0:24]} Nf8 {[%emt 0:0:1]} 41. Kh2 {[%emt 0:1:31]
} Kg7 {[%emt 0:0:23]} 42. Qc7 {[%emt 0:0:59]} Rd2 {[%emt 0:0:0]} 43. e6 {[%emt 0:0:55]} Nxe6 {[%emt 0:0:9]} 44. Qe5 {[%emt 0:0:28]} Kf8 {[%emt 0:1:27]} 45. Rh6 {[%emt 0:0:30]} Qc2 {[%emt 0:0:25]} 46. Rxh7 {[%emt 0:0:5]
} Rd8 {[%emt 0:0:10]} 47. Rh8+ {[%emt 0:0:9]} Ke7 {[%emt 0:0:0]} 48. Rxd8 {[%emt 0:0:8]} Kxd8 {[%emt 0:0:1]} 49. Qd6+ {[%emt 0:0:2]} Kc8 {[%emt 0:0:3]} 50. Qd7+ {[%emt 0:0:7]} Kb8 {[%emt 0:0:2]} 51. Qe8+ {[%emt 0:0:7]
} Qc8 {[%emt 0:0:2]} 52. Qxc8+ {[%emt 0:0:13]} Kxc8 {[%emt 0:0:0]} 53. Ne4 {[%emt 0:0:19]} Kd7 {[%emt 0:0:1]} 54. Kg3 {[%emt 0:0:8]} Kc6 {[%emt 0:0:1]} 55. f4 {[%emt 0:0:17]} Nd4 {[%emt 0:0:13]} 56. Kg4 {[%emt 0:0:3]
} Kd5 {[%emt 0:0:2]} 57. Nf6+ {[%emt 0:0:9]} Ke6 {[%emt 0:0:0]} 58. Nh5 {[%emt 0:0:6]} b5 {[%emt 0:0:16]} 59. Ng7+ {[%emt 0:0:2]} Kd5 {[%emt 0:0:1]} 60. Nf5 {[%emt 0:0:9]} Nc2 {[%emt 0:0:24]} 61. Nh6 {[%emt 0:0:8]
} Ke6 {[%emt 0:0:9]} 62. f5+ {[%emt 0:0:6]} Ke7 {[%emt 0:0:0]} 63. Kh5 {[%emt 0:0:22]} Ne3 {[%emt 0:0:7]} 64. g4 {[%emt 0:0:11]} 1-0

[Event "FIDE World Rapid-ch Open 2018"]
[White "Sjugirov, Sanan"]
[Black "Sarana, Alexey"]
[Site "St. Petersburg"]
[Round "5.17"]
[Annotator "RC"]
[Result "1-0"]
[Date "2018.12.26"]
[WhiteElo "2663"]
[BlackElo "2618"]
[PlyCount "111"]
[TimeControl "900+10"]

1. d4 {[%emt 0:0:0]} Nf6 {[%emt 0:0:0]} 2. c4 {[%emt 0:0:0]} e6 {[%emt 0:0:0]} 3. Nc3 {[%emt 0:0:0]} Bb4 {[%emt 0:0:6]} 4. Qc2 {[%emt 0:0:0]} 0-0 {[%emt 0:0:9]} 5. a3 {[%emt 0:0:0]} Bxc3+ {[%emt 0:0:2]} 6. Qxc3 {[%emt 0:0:0]
} b6 {[%emt 0:0:1]} 7. Bg5 {[%emt 0:0:5]} Bb7 {[%emt 0:0:1]
} 8. e3 {[%emt 0:0:12]} d6 {[%emt 0:0:4]} 9. f3 {[%emt 0:0:2]} h6 {[%emt 0:0:40]
} 10. Bh4 {[%emt 0:0:2]} d5 {[%emt 0:0:46]} 11. cxd5 {[%emt 0:0:0]} exd5 {[%emt 0:0:52]} 12. Bd3 {[%emt 0:0:11]} Nbd7 {[%emt 0:0:1]} 13. Ne2 {[%emt 0:0:14]} c5 {[%emt 0:0:3]} 14. 0-0 {[%emt 0:0:19]} Qe7 {[%emt 0:0:36]
} 15. Bf2 {[%emt 0:0:26]} Rac8 {[%emt 0:0:2]} 16. Qd2 {[%emt 0:0:14]
} Rfe8 {[%emt 0:0:20]} 17. Rfe1 {[%emt 0:0:18]} Nf8 {[%emt 0:0:0]} 18. Ng3 {[%emt 0:0:14]} Bc6 {[%emt 0:1:22]} 19. Nf5 {[%emt 0:0:17]} Qd7 {[%emt 0:0:1]} 20. Bc2 {[%emt 0:0:35]} Ng6 {[%emt 0:0:19]} 21. dxc5 {[%emt 0:1:13]
} bxc5 {[%emt 0:0:4]} 22. b4 {[%emt 0:0:2]} cxb4 {[%emt 0:0:0]} 23. axb4 {[%emt 0:0:1]} Bb5 {[%emt 0:0:3]} 24. Nd4 {[%emt 0:0:14]} Qb7 {[%emt 0:0:26]} 25. Nxb5 {[%emt 0:0:6]} Qxb5 {[%emt 0:0:1]} 26. Ba4 {[%emt 0:0:1]
} Qb7 {[%emt 0:0:6]} 27. Bxe8 {[%emt 0:0:2]} Rxe8 {[%emt 0:0:0]} 28. Qd4 {[%emt 0:0:20]} a6 {[%emt 0:0:2]} 29. Rec1 {[%emt 0:2:1]} Ne5 {[%emt 0:0:19]} 30. Bg3 {[%emt 0:0:30]} Nc6 {[%emt 0:0:29]} 31. Qc5 {[%emt 0:0:5]
} Re6 {[%emt 0:0:28]} 32. Bd6 {[%emt 0:0:28]} Na7 {[%emt 0:0:0]} 33. Qc7 {[%emt 0:0:20]} Qxc7 {[%emt 0:0:17]} 34. Rxc7 {[%emt 0:0:22]} Nb5 {[%emt 0:0:2]} 35. Rc8+ {[%emt 0:0:1]} Kh7 {[%emt 0:0:1]} 36. Bc5 {[%emt 0:0:4]
} Nd7 {[%emt 0:0:16]} 37. Kf2 {[%emt 0:0:34]} Kg6 {[%emt 0:0:0]} 38. Rd8 {[%emt 0:0:11]} Nf6 {[%emt 0:0:17]} 39. Ra8 {[%emt 0:0:11]} Nc7 {[%emt 0:0:2]} 40. Ra7 {[%emt 0:0:4]} Rc6 {[%emt 0:0:1]} 41. Rb7 {[%emt 0:1:23]
} Nd7 {[%emt 0:0:27]} 42. Bd4 {[%emt 0:0:5]} f6 {[%emt 0:0:0]} 43. g4 {[%emt 0:0:6]} Nf8 {[%emt 0:0:13]} 44. f4 {[%emt 0:0:53]} Rc2+ {[%emt 0:0:15]} 45. Kg3 {[%emt 0:0:7]} f5 {[%emt 0:0:13]} 46. Rb6+ {[%emt 0:0:21]
} Nfe6 {[%emt 0:0:21]} 47. Raxa6 {[%emt 0:0:5]} Kf7 {[%emt 0:0:0]} 48. Ra7 {[%emt 0:0:26]} fxg4 {[%emt 0:0:28]} 49. Be5 {[%emt 0:0:16]} h5 {[%emt 0:0:13]} 50. f5 {[%emt 0:0:11]} g5 {[%emt 0:0:7]} 51. fxe6+ {[%emt 0:0:7]
} Kg6 {[%emt 0:0:1]} 52. Rxc7 {[%emt 0:0:32]} h4+ {[%emt 0:0:0]} 53. Kxg4 {[%emt 0:0:1]} Rg2+ {[%emt 0:0:3]} 54. Kf3 {[%emt 0:0:1]} h3 {[%emt 0:0:1]} 55. e7+ {[%emt 0:0:16]} Kh5 {[%emt 0:0:1]} 56. e8=Q+ 1-0